Cogmind - Beta 9.5 @@@ ROGUE MODE // 2020.04.09 @ 07:19:00 Player: EgoOrb Result: Destroyed by G-34 Mercenary with Small Laser Performance ------------- Evolutions (0) 0 Regions Visited (1) 200 Robots Destroyed (4) 20 Value Destroyed (64) 64 Prototype IDs (0) 0 Alien Tech Used (0) 0 Bonus (0) 0 TOTAL SCORE: 284 Bonus ------- None Cogmind --------- Core Integrity 0/250 Matter 169/300 Energy 100/100 System Corruption 0% Temperature Cool (6) Movement Core (400) Ox7 Location -10/Materials Parts ------- > --- POWER (1) -------- (None) > --- PROPULSION (2) --- (None) > --- UTILITY (2) ------ Medium Storage Unit Large Storage Unit > --- WEAPON (2) ------- (None) > --- INVENTORY (14) --- Heat Sink Small Battery (55) Peak State ------------ > --- POWER ------------ Ion Engine > --- PROPULSION ------- Light Treads Light Treads > --- UTILITY ---------- Small Storage Unit Small Storage Unit > --- WEAPON ----------- Assault Rifle Assault Rifle > --- INVENTORY -------- Ion Engine Small Laser [Rating: 7] Favorites ----------- Power Ion Engine Engine Ion Engine Propulsion Light Treads Treads Light Treads Leg Aluminum Leg Utility Medium Storage Unit Storage Medium Storage Unit Weapon Assault Rifle Energy Gun Small Laser Ballistic Gun Assault Rifle Build | -11 -10 ------- Run | Scr Mat Slots Evolved . | . . Power . | . . Propulsion . | . . Utility . | . . Weapon . | . . Parts Attached 14 | 5 9 Power 2 | 1 1 Engine 2 | 1 1 Core . | . . Reactor . | . . Propulsion 4 | 2 2 Treads 2 | 2 . Leg 2 | . 2 Wheel . | . . Hover . | . . Flight . | . . Utility 4 | . 4 Device . | . . Storage 4 | . 4 Processor . | . . Hackware . | . . Protection . | . . Artifact . | . . Weapon 4 | 2 2 Energy Gun 2 | . 2 Energy Cannon . | . . Ballistic Gun 2 | 2 . Ballistic Cannon . | . . Launcher . | . . Special Weapon . | . . Impact Weapon . | . . Slashing Weapon . | . . Piercing Weapon . | . . Special Melee Weapon . | . . Unidentified Prototypes . | . . Parts Lost 10 | . 10 Power 2 | . 2 Propulsion 4 | . 4 Utility . | . . Weapon 4 | . 4 Highest Loss Streak 10 | . 10 Average Slot Usage (%) 89 | . 89 Engine 12 | . 12 Treads 22 | . 22 Leg 4 | . 4 Storage 23 | . 23 Energy Gun 1 | . 1 Ballistic Gun 23 | . 23 Naked Turns . | . . Heaviest Build 33 | 9 33 Greatest Support 40 | 40 40 Greatest Overweight (x) 10 | . 10 Average Overweight (x) . | . . Largest Inventory Capacity 14 | 4 14 Average Capacity 9 | 4 11 Most Carried 6 | 4 6 Average Carried 3 | 2 4 Final Capacity 14 | 4 14 Final Carried 4 | 4 2 Class Distribution -------------------- 100% | Mutant Dominant Class ---------------- Mutant | -10/Materials Resources | -11 -10 ----------- Run | Scr Mat Matter Collected 255 | 124 131 Remotely . | . . Salvage Created 97 | . 97 Parts 10 | . 10 Haulers Intercepted . | . . Recyclers Shooed . | . . Parts Field Recycled . | . . Retrieved Matter . | . . Parts Self-Destructed . | . . Prevented . | . . Kills | -11 -10 ------- Run | Scr Mat Combat Hostiles Destroyed 4 | . 4 Guns 4 | . 4 Classes Destroyed 2 | . 2 Swarmer 3 | . 3 Grunt 1 | . 1 Best Kill Streak 1 | . 1 Combat Bots Only 1 | . 1 Max Kills in Single Turn 1 | . 1 Gunslinging . | . . Exploded . | . . Melee . | . . Uniques/NPCs Destroyed . | . . Combat | -11 -10 -------- Run | Scr Mat Damage Taken 1399 | . 1399 Core 254 | . 254 Absorbed by Shields . | . . Core Remaining (%) 100 | 100 . Volleys Fired 28 | . 28 Largest 2 | . 2 Hottest 60 | . 60 Shots Fired 44 | . 44 Gun 44 | . 44 Cannon . | . . Launcher . | . . Special . | . . Kinetic 32 | . 32 Thermal 12 | . 12 Explosive . | . . Electromagnetic . | . . Robot Hit Streak 5 | . 5 Robot Miss Streak 5 | . 5 Penetration Max . | . . Secondary Targets 1 | . 1 Max Gunslinging Chain 1 | . 1 Shots Hit Robots 22 | . 22 Core Hits 7 | . 7 Critical Hits 1 | . 1 Critical Kills 1 | . 1 Critical Parts Destroyed . | . . Melee Attacks . | . . Impact . | . . Slashing . | . . Piercing . | . . Sneak Attacks . | . . Combat Hostiles . | . . Follow-up Attacks . | . . Damage Inflicted 203 | . 203 Guns 203 | . 203 Cannons . | . . Explosions . | . . Melee . | . . Ramming . | . . Kinetic 105 | . 105 Thermal 98 | . 98 Explosive . | . . Electromagnetic . | . . Impact . | . . Slashing . | . . Piercing . | . . Highest Corruption . | . . Average Corruption . | . . Corruption Purged . | . . Overload Shots . | . . Overflow Damage . | . . Projectiles . | . . Explosions . | . . Melee . | . . Knockbacks . | . . Impact . | . . Kinetic . | . . Secondary . | . . Self-Inflicted Damage . | . . Shots . | . . Rammed . | . . Targets Rammed . | . . Kicked . | . . Crushed . | . . Highest Temperature 72 | . 72 Average Temperature 30 | . 30 Received Heat Transfer 513 | . 513 Siege Activations . | . . Robots Corrupted . | . . Combat Hostiles . | . . Parts Fried . | . . Impact Corruptions . | . . Robots Melted . | . . Combat Hostiles . | . . Parts Melted . | . . Heat Transferred 225 | . 225 Parts Sabotaged . | . . Parts Stolen . | . . Parts Stripped . | . . Power Chain Reactions . | . . Missiles Intercepted . | . . Alert | -11 -10 ------- Run | Scr Mat Peak Influence 70 | . 70 Average Influence 19 | . 25 Maximum Alert Level . | . . Low Security (%) 100 | 100 100 Level 1 . | . . Level 2 . | . . Level 3 . | . . Level 4 . | . . Level 5 . | . . High Security . | . . Max Security . | . . Squads Dispatched 1 | . 1 Investigation 1 | . 1 Extermination . | . . Reinforcement . | . . Assault . | . . Garrison . | . . Intercept . | . . Construction Impeded . | . . Haulers Reinforced . | . . Stealth | -11 -10 --------- Run | Scr Mat Distress Signals . | . . Communications Jammed . | . . Distress Signals . | . . Times Spotted 10 | . 10 Peak Tracking Total 6 | . 6 Tactical Retreats 1 | . 1 Traps | -11 -10 ------- Run | Scr Mat Traps Triggered 1 | . 1 Indirectly . | . . Trap Hack Attempts . | . . Triggered . | . . Disarmed . | . . Reprogrammed . | . . Reused . | . . Traps Extracted . | . . Installed . | . . Triggered . | . . Machines | -11 -10 ---------- Run | Scr Mat Machines Disabled . | . . Max in Single Turn . | . . Machines Sabotaged . | . . Garrisons Compromised . | . . Overloaded Fab Kills . | . . Fab Network Shutdowns . | . . Hacking | -11 -10 --------- Run | Scr Mat Machines Accessed . | . . Terminals . | . . Fabricators . | . . Repair Stations . | . . Recycling Units . | . . Scanalyzers . | . . Garrison Access . | . . Total Hacks . | . . Successful . | . . Failed . | . . Catastrophic . | . . Database Lockouts . | . . Manual 3 | . 3 Terminals . | . . Fabricators . | . . Repair Stations . | . . Recycling Units . | . . Scanalyzers . | . . Garrison Access . | . . Terminal Hacks . | . . Fabricator Hacks . | . . Repair Station Hacks . | . . Recycling Unit Hacks . | . . Scanalyzer . | . . Garrison Access Hacks . | . . Unauthorized Hacks . | . . Terminals . | . . Fabricators . | . . Repair Stations . | . . Recycling Units . | . . Scanalyzers . | . . Garrison Access . | . . Data Cores Recovered . | . . Used . | . . Hacking Detections 1 | . 1 Full Trace Events 1 | . 1 Feedback Events . | . . Feedback Blocked . | . . Robot Schematics Acquired . | . . Robots Built . | . . Matter . | . . Time . | . . Total Robot Build Rating . | . . Part Schematics Acquired . | . . Parts Built . | . . Matter . | . . Time . | . . Total Part Build Rating . | . . Parts Repaired . | . . Time . | . . Parts Recycled . | . . Recycled Matter . | . . Retrieved Matter . | . . Retrieved Components . | . . Parts Scanalyzed . | . . Part Schematics Acquired . | . . Parts Damaged . | . . Bothacking | -11 -10 ------------ Run | Scr Mat Used RIF Installer . | . . Robots Hacked . | . . Non-combat . | . . Combat . | . . Robot Hacks Applied . | . . Relay Couplers Released . | . . Robots Rewired . | . . Allies Hacked . | . . Hacks Repelled . | . . Allies | -11 -10 -------- Run | Scr Mat Total Allies . | . . Largest Group . | . . Highest-Rated Group . | . . Highest-Rated Ally . | . . Total Orders . | . . Ally Attacks . | . . Total Damage . | . . Kills . | . . Allies Corrupted . | . . Allies Melted . | . . Intel | -11 -10 ------- Run | Scr Mat Robot Analysis Total . | . . Derelict Logs Recovered . | . . Drone Launches . | . . Drone Recoveries . | . . Exploration | -11 -10 ------------- Run | Scr Mat Turns Passed 507 | 122 385 Spaces Moved 249 | 73 176 Core 11 | 7 4 Treads 218 | 66 152 Legs 20 | . 20 Wheels . | . . Hover . | . . Flight . | . . Fastest Speed 50 | 50 150 Average Speed 160 | 149 165 Slowest Speed 550 | 160 550 Overloaded Moves . | . . Propulsion Burnouts . | . . Robots Hopped . | . . Cave-ins Triggered . | . . Exploration Rate (%) 10 | 5 16 Regions Visited 1 Branch Regions . Pre-discovered Areas . | . . Known Exits Taken . | . . Unknown Exits Taken 1 | 1 . Scrap Searched . | . . Spaces Dug . | . . Terrain Destroyed . | . . Melee . | . . Projectile . | . . AOE . | . . Actions | -11 -10 --------- Run | Scr Mat Total 316 | 86 230 Wait . | . . Move 248 | 72 176 Hop . | . . Pick Up 21 | 9 12 Fast Attach . | . . Attach 14 | 5 9 Detach . | . . Swap . | . . Drop 5 | . 5 Fire 28 | . 28 Melee . | . . Ram . | . . Kick . | . . Crush . | . . Escape Stasis . | . . Rewire . | . . Trap . | . . Miscellaneous . | . . Route ------- -11/Scrapyard -10/Materials History --------- Turn | Location | Event 6 | -11/Scrapyard | Discovered new exit (range 15) 123 | -11/Scrapyard | Entered Materials 303 | -10/Materials | Build established: Mutant 455 | -10/Materials | Core integrity fell below 50% 485 | -10/Materials | Core integrity fell below 20% 508 | -10/Materials | Destroyed by G-34 Mercenary with Small Laser Last Messages --------------- Assault Rifle destroyed. Ion Engine destroyed. Assault Rifle destroyed. S-10 Pest destroyed. Sml. Laser destroyed. Acquired 20 matter. G-34 Mercenary destroyed. R-06 Scavenger collects Lgt. Assault Rifle. Sml. Laser destroyed. Acquired 34 matter. R-06 Scavenger collects Lgt. Ion Engine. Ion Engine destroyed. K-01 Serf collects debris. R-06 Scavenger collects Sml. Laser. Acquired 11 matter. R-06 Scavenger collects Flight Unit. K-01 Serf collects debris. Aluminum Leg destroyed. Acquired Sml. Battery. Aluminum Leg destroyed. Map ----- +----------------------------------------------------+ | | | | | | | | | | | | | | | | | | | | | | | | | | | | | | | | | | | ?????????????#####???????????????????????????????? | | ?????????????# #??????????????????????????????? | | ?????????????# #??????????????????????????????? | | ?????????????# #??????????????????????????????? | | ############## #??????????????????????????????? | | # ###################????????????? | | # ## g ##???????????? | | ########## # ## g ^ ????????? | | # + ###+### g @ ^ ????????? | | # # = =""" """a """ ""??????????? | | # # """ """ """??????????????? | | # # " """ ""???????????????? | | # #######+### ???????????????? | | # #???? # ???????????????? | | # #??# """ # ???????????????? | | #######??# "R # ############ ??????????????? | | #????????# """ #r#???????????????????????????? | | ####????????# "" # #???????????????????????????? | | ????????????# # #???????????????????????????? | | ?????????????#####+# #???????????????????????????? | | ?????????????????? ????????????????????????????? | | ?????????????????? ????????????????????????????? | | ?????????????????? ????????????????????????????? | | ??????????????????? ????????????????????????????? | | ??????????????????? ????????????????????????????? | | ??????????????????? ????????????????????????????? | | ???????????????????? ????????????????????????????? | | ?????????????????????????????????????????????????? | | ?????????????????????????????????????????????????? | | ?????????????????????????????????????????????????? | | ?????????????????????????????????????????????????? | | ?????????????????????????????????????????????????? | | ?????????????????????????????????????????????????? | +----------------------------------------------------+ Best States ------------- Heat Dissipation 25 Energy Generation 10 Energy Capacity 250 Matter Stores 197 Matter Capacity 300 Sight Range 16 Terrain Scan Density 10 Evasion (%) 40 Recoil Reduction 2 Item Schematics ----------------- None Robot Schematics ------------------ None Fabricated ------------ Nothing Alien Tech Used ----------------- None Achievements -------------- None Challenges ------------ None Game ------ Seed GodHoverDriver Manual? 0 Play Time 00:10:10 Cumulative 2.2 hours Start 2020.04.01 @ 17:27:23 End 2020.04.09 @ 07:19:00 Sessions 7 Manual Loads 0 Difficulty Rogue Special Mode None Game No. 5 Rogue 5 Adventurer 0 Explorer 0 Win Type - Total 0 Types 0/0/0/0/0/0/0 Lore% 2 Gallery% 5 Achievement% 5 Wizard Run 0 Options --------- ASCII 0 Keyboard 0 Movement Arrows Keybinds 0 Fullscreen 1 Font 36/Smallcaps Map View 76x50 Tactical HUD 0 Map Filters NONE Filters NONE Steam 1 RUN: c602b151-a15e-46ea-bf29-35c2dbe8fdc2